Cogmind - Beta 14 *** ADVENTURER MODE // 2024.10.02 @ 16:52:22 // Winter2019/RPGLIKE Player: Gallgagger Result: Destroyed by Triborg with Siege Cannon Performance ------------- Evolutions (0) 0 Regions Visited (5) 1000 Robots Destroyed (60) 300 Value Destroyed (1921) 1921 Prototype IDs (3) 60 Alien Tech Used (0) 0 Bonus (-30) -30 TOTAL SCORE: 3251 Bonus ------- Friendly Fire -30 Cogmind --------- Core Integrity 0/1700 Matter 296/300 Energy 288/290 System Corruption 2% Temperature Cool (0) Movement Rolling (80) Location -8/Scraptown Parts ------- > --- POWER (2) -------- Improved Deuterium Engine > --- PROPULSION (3) --- Wheel Wheel > --- UTILITY (4) ------ Scrap Suit Gun Armor > --- WEAPON (2+2) ----- Medium Laser > --- INVENTORY (2) ---- Makeshift Shrapnel Gun Battle Cannon Peak State ------------ > --- POWER ------------ Improved Deuterium Engine > --- PROPULSION ------- Wheel Wheel Wheel > --- UTILITY ---------- Scrap Suit Sensor Array Gun Armor > --- WEAPON ----------- Makeshift Shrapnel Gun Battle Cannon > --- INVENTORY -------- Medium Laser Medium Laser [Rating: 31] Favorites ----------- Power Ion Engine Engine Ion Engine Propulsion Wheel Wheel Wheel Utility Sensor Array Device Sensor Array Protection Scrap Shield Weapon Medium Laser Energy Gun Medium Laser Ballistic Gun Makeshift Shrapnel Gun Ballistic Cannon Battle Cannon Build | -11 -10 -10 -10 -8 -8 ------- Run | Yrd Mat Min Sub Rec Scr Slots Evolved 7 | 4 . . 3 . . Power 1 | 1 . . . . . Propulsion 2 | 1 . . 1 . . Utility 3 | 1 . . 2 . . Weapon 1 | 1 . . . . . Parts Attached 26 | 6 . 2 7 3 8 Power 3 | 2 . . . . 1 Engine 3 | 2 . . . . 1 Core . | . . . . . . Reactor . | . . . . . . Propulsion 4 | 2 . . 1 1 . Treads . | . . . . . . Leg . | . . . . . . Wheel 4 | 2 . . 1 1 . Hover . | . . . . . . Flight . | . . . . . . Utility 5 | . . 1 3 . 1 Device 3 | . . 1 1 . 1 Storage . | . . . . . . Processor . | . . . . . . Hackware . | . . . . . . Protection 2 | . . . 2 . . Artifact . | . . . . . . Weapon 14 | 2 . 1 3 2 6 Energy Gun 7 | 2 . 1 . 2 2 Energy Cannon . | . . . . . . Ballistic Gun 5 | . . . 2 . 3 Ballistic Cannon 2 | . . . 1 . 1 Launcher . | . . . . . . Special Weapon . | . . . . . . Impact Weapon . | . . . . . . Slashing Weapon . | . . . . . . Piercing Weapon . | . . . . . . Special Melee Weapon . | . . . . . . Unidentified Prototypes 1 | . . . 1 . . Parts Lost 3 | . . . . . 3 Power . | . . . . . . Propulsion 1 | . . . . . 1 Utility 2 | . . . . . 2 Weapon . | . . . . . . Highest Loss Streak 2 | . . . . . 2 To Critical Strikes . | . . . . . . Average Slot Usage (%) 80 | . 75 86 87 76 74 Engine 20 | . 25 25 21 15 13 Wheel 23 | . 25 25 21 23 22 Device 7 | . . 11 10 7 7 Protection 8 | . . . 10 15 14 Energy Gun 11 | . 25 25 1 1 11 Ballistic Gun 4 | . . . 10 6 1 Ballistic Cannon 4 | . . . 10 6 1 Peak Build Rating 31 | 6 6 7 26 26 31 Average Rating 15 | 4 6 6 14 25 24 On Entrance 11 | . 6 6 7 26 21 Naked Turns . | . . . . . . Heaviest Build 43 | 13 13 15 38 38 43 Greatest Support 40 | 20 20 20 40 40 30 Greatest Overweight (x) 1 | . . . 1 1 1 Average Overweight (x) . | . . . . . . Largest Inventory Capacity 2 | . . . . 2 2 Average Capacity . | . . . . . 2 Most Carried 2 | . . . . 2 2 Average Carried . | . . . . . 2 Final Capacity 2 | . . . . 2 2 Final Carried 2 | . . . . 2 2 Class Distribution -------------------- 99% | Hacker-Mutant Dominant Class ---------------- Hacker-Mutant | -10/Materials Hacker-Mutant | -10/Mines Hacker-Mutant | -10/Subcaves Hacker-Mutant | -8/Recycling Hacker-Mutant | -8/Scraptown Resources | -11 -10 -10 -10 -8 -8 ----------- Run | Yrd Mat Min Sub Rec Scr Matter Collected 1628 | 233 27 10 622 225 511 Remotely . | . . . . . . Salvage Created 1971 | . 792 77 382 108 612 Parts 131 | . 46 7 39 14 25 Haulers Intercepted 2 | . 2 . . . . Recyclers Shooed . | . . . . . . Parts Field Recycled . | . . . . . . Retrieved Matter . | . . . . . . Parts Self-Destructed 20 | . . . 20 . . Prevented . | . . . . . . Kills | -11 -10 -10 -10 -8 -8 ------- Run | Yrd Mat Min Sub Rec Scr Combat Hostiles Destroyed 52 | . 16 3 15 4 14 Guns 42 | . 16 3 10 2 11 Cannons 10 | . . . 5 2 3 Classes Destroyed 14 | . 5 . 3 . 6 Worker 1 | . 1 . . . . Hauler 2 | . 2 . . . . Turret 2 | . . . 2 . . Watcher 3 | . 3 . . . . Swarmer 7 | . 3 3 1 . . Grunt 14 | . 13 . 1 . . Sentry 5 | . . . 1 4 . Subdweller 12 | . . . 12 . . Bolteater 4 | . . . . . 4 Explorer 1 | . . . . . 1 Guru 2 | . . . . . 2 Scrapper 4 | . . . . . 4 Elite 2 | . . . . . 2 Butcher 1 | . . . . . 1 Best Kill Streak 5 | . 4 3 4 1 5 Combat Bots Only 5 | . 2 3 3 1 5 Max Kills in Single Turn 2 | . 2 1 1 1 1 Gunslinging . | . . . . . . Exploded . | . . . . . . Melee . | . . . . . . Uniques/NPCs Destroyed . | . . . . . . Combat | -11 -10 -10 -10 -8 -8 -------- Run | Yrd Mat Min Sub Rec Scr Hostile Shots Fired 319 | . 75 12 80 6 146 Missed 78 | . 21 2 23 . 32 Damage Taken 3882 | . 496 59 656 64 2607 Core 2743 | . 398 48 405 27 1865 Absorbed by Shields . | . . . . . . Redirected to Core 2133 | . 306 35 326 27 1439 Ignored by Resistances 1072 | . 152 20 187 18 695 Regen/Repaired (Parts) 2 | . . . . . 2 Core Remaining (%) 100 | 100 . . . . . Volleys Fired 222 | . 58 8 96 7 53 Largest 2 | . 2 2 2 2 2 Hottest 100 | . 90 90 100 63 100 Shots Fired 391 | . 116 16 142 14 103 Gun 247 | . 116 16 50 7 58 Cannon 144 | . . . 92 7 45 Launcher . | . . . . . . Special . | . . . . . . Kinetic 235 | . . . 134 14 87 Thermal 156 | . 116 16 8 . 16 Explosive . | . . . . . . Electromagnetic . | . . . . . . Robot Hit Streak 36 | . 32 8 26 15 36 Robot Miss Streak 5 | . 2 1 2 1 5 Penetration Max . | . . . . . . Secondary Targets 2 | . . 2 . . . Max Gunslinging Chain 1 | . . 1 . . . Shots Hit Robots 277 | . 94 11 73 10 89 Core Hits 132 | . 41 3 41 6 41 Critical Kills . | . . . . . . Critical Parts Destroyed . | . . . . . . Critical Strikes 9 | . 1 1 3 1 3 Burn 4 | . 1 1 . . 2 Blast 5 | . . . 3 1 1 Melee Attacks . | . . . . . . Impact . | . . . . . . Slashing . | . . . . . . Piercing . | . . . . . . Sneak Attacks . | . . . . . . Combat Hostiles . | . . . . . . Follow-up Attacks . | . . . . . . Damage Inflicted 4873 | . 1173 142 1596 263 1699 Guns 3584 | . 1173 142 1010 175 1084 Cannons 1289 | . . . 586 88 615 Explosions . | . . . . . . Melee . | . . . . . . Ramming . | . . . . . . Kinetic 3298 | . . . 1523 263 1512 Thermal 1575 | . 1173 142 73 . 187 Explosive . | . . . . . . Electromagnetic . | . . . . . . Impact . | . . . . . . Slashing . | . . . . . . Piercing . | . . . . . . Highest Corruption 2 | . . . . . 2 Average Corruption 1 | . . . . . 1 Corruption Purged . | . . . . . . Corruption Blocked . | . . . . . . Effects 3 | . . . . . 3 Message Errors 1 | . . . . . 1 Matter Fused 1 | . . . . . 1 Energy Discharges 1 | . . . . . 1 Overload Shots . | . . . . . . Overflow Damage 32 | . . . . 12 20 Projectiles 32 | . . . . 12 20 Explosions . | . . . . . . Melee . | . . . . . . Knockbacks 16 | . . . 3 . 13 Impact . | . . . . . . Kinetic 16 | . . . 3 . 13 Secondary . | . . . . . . Self-Inflicted Damage . | . . . . . . Shots . | . . . . . . Rammed . | . . . . . . Targets Rammed . | . . . . . . Kicked . | . . . . . . Crushed . | . . . . . . Highest Temperature 333 | . 333 . . . 10 Average Temperature 120 | . 120 . . . 10 Received Heat Transfer 781 | . 339 . 186 27 229 Siege Activations . | . . . . . . Robots Corrupted . | . . . . . . Combat Hostiles . | . . . . . . Parts Fried . | . . . . . . Impact Corruptions . | . . . . . . Robots Melted . | . . . . . . Combat Hostiles . | . . . . . . Parts Melted 13 | . 8 2 1 . 2 Heat Transferred 4468 | . 3098 445 222 . 703 Parts Sabotaged . | . . . . . . Parts Stolen 2 | . . . . . 2 Parts Stripped . | . . . . . . Power Chain Reactions . | . . . . . . Alert | -11 -10 -10 -10 -8 -8 ------- Run | Yrd Mat Min Sub Rec Scr Peak Influence 231 | . 231 70 . 200 . Initial . | . . . . . . Average 70 | . 104 23 . 69 . Maximum Alert Level 1 | . 1 . . 1 . Low Security (%) 96 | 100 96 100 . 94 . Level 1 3 | . 3 . . 5 . Level 2 . | . . . . . . Level 3 . | . . . . . . Level 4 . | . . . . . . Level 5 . | . . . . . . High Security . | . . . . . . Max Security . | . . . . . . Squads Dispatched 3 | . 3 . . . . Investigation 3 | . 3 . . . . Extermination . | . . . . . . Reinforcement . | . . . . . . Assault . | . . . . . . Garrison . | . . . . . . Intercept . | . . . . . . Searches Triggered . | . . . . . . Construction Impeded . | . . . . . . Haulers Reinforced . | . . . . . . Active Scanning Responses . | . . . . . . Cargo Convoy Interrupts . | . . . . . . Stealth | -11 -10 -10 -10 -8 -8 --------- Run | Yrd Mat Min Sub Rec Scr Distress Signals 2 | . 2 . . . . Communications Jammed . | . . . . . . Distress Signals . | . . . . . . Times Spotted 63 | . 22 3 18 1 19 Peak Tracking Total 9 | . 4 3 3 1 9 Tactical Retreats 5 | . 3 . . . 2 Traps | -11 -10 -10 -10 -8 -8 ------- Run | Yrd Mat Min Sub Rec Scr Traps Triggered 2 | . 2 . . . . Indirectly . | . . . . . . Trap Hack Attempts . | . . . . . . Triggered . | . . . . . . Disarmed . | . . . . . . Reprogrammed . | . . . . . . Reused . | . . . . . . Traps Extracted . | . . . . . . Installed . | . . . . . . Triggered . | . . . . . . Machines | -11 -10 -10 -10 -8 -8 ---------- Run | Yrd Mat Min Sub Rec Scr Machines Disabled 5 | . . . 2 . 3 Max in Single Turn 1 | . . . 1 . 1 Machines Repaired . | . . . . . . Machines Dismantled . | . . . . . . Machines Sabotaged . | . . . . . . Overloaded Fab Kills . | . . . . . . Hacking | -11 -10 -10 -10 -8 -8 --------- Run | Yrd Mat Min Sub Rec Scr Machines Accessed 19 | . 6 . 1 12 . Terminals 10 | . 5 . . 5 . Fabricators . | . . . . . . Repair Stations . | . . . . . . Recycling Units 8 | . 1 . . 7 . Scanalyzers . | . . . . . . Garrison Access . | . . . . . . Total Hacks 46 | . 17 . 5 24 . Successful 32 | . 12 . 5 15 . Failed 14 | . 5 . . 9 . Catastrophic 1 | . 1 . . . . Database Lockouts . | . . . . . . Manual 39 | . 14 . . 25 . Terminals 33 | . 16 . . 17 . Fabricators . | . . . . . . Repair Stations . | . . . . . . Recycling Units 8 | . 1 . . 7 . Scanalyzers . | . . . . . . Garrison Access . | . . . . . . Terminal Hacks 17 | . 9 . 5 3 . Record 5 | . . . 5 . . Robot Analysis 4 | . 3 . . 1 . Prototype ID Bank 1 | . 1 . . . . Level Access Points 1 | . 1 . . . . Branch Access Points 2 | . 1 . . 1 . Emergency Access Points 2 | . 1 . . 1 . Alert Level 2 | . 2 . . . . Fabricator Hacks . | . . . . . . Repair Station Hacks . | . . . . . . Recycling Unit Hacks . | . . . . . . Scanalyzer . | . . . . . . Garrison Access Hacks . | . . . . . . Unauthorized Hacks 15 | . 3 . . 12 . Terminals 7 | . 2 . . 5 . Botnet 7 | . 2 . . 5 . Fabricators . | . . . . . . Repair Stations . | . . . . . . Recycling Units 8 | . 1 . . 7 . Tunnel 8 | . 1 . . 7 . Scanalyzers . | . . . . . . Garrison Access . | . . . . . . Data Cores Recovered . | . . . . . . Used . | . . . . . . Hacking Detections 5 | . 4 . . 1 . Full Trace Events . | . . . . . . Feedback Events . | . . . . . . Feedback Blocked . | . . . . . . Robot Schematics Acquired . | . . . . . . Robots Built . | . . . . . . Authchips . | . . . . . . Time . | . . . . . . Total Robot Build Rating . | . . . . . . Part Schematics Acquired . | . . . . . . Parts Built . | . . . . . . Authchips . | . . . . . . Time . | . . . . . . Total Part Build Rating . | . . . . . . Parts Repaired . | . . . . . . Time . | . . . . . . Parts Recycled . | . . . . . . Recycled Matter . | . . . . . . Retrieved Matter . | . . . . . . Retrieved Components . | . . . . . . Parts Scanalyzed . | . . . . . . Part Schematics Acquired . | . . . . . . Parts Damaged . | . . . . . . Bothacking | -11 -10 -10 -10 -8 -8 ------------ Run | Yrd Mat Min Sub Rec Scr Used RIF Installer . | . . . . . . Robots Hacked . | . . . . . . Non-combat . | . . . . . . Combat . | . . . . . . Robot Hacks Applied . | . . . . . . Relay Couplers Released . | . . . . . . Fabnet Peak Effective % . | . . . . . . Robots Rewired . | . . . . . . Allies Hacked . | . . . . . . Hacks Repelled . | . . . . . . Allies | -11 -10 -10 -10 -8 -8 -------- Run | Yrd Mat Min Sub Rec Scr Total Allies . | . . . . . . Largest Group . | . . . . . . Highest-Rated Group . | . . . . . . Highest-Rated Ally . | . . . . . . Total Orders . | . . . . . . Ally Attacks . | . . . . . . Total Damage . | . . . . . . Kills . | . . . . . . Allies Corrupted . | . . . . . . Allies Melted . | . . . . . . Intel | -11 -10 -10 -10 -8 -8 ------- Run | Yrd Mat Min Sub Rec Scr Robot Analysis Total 4 | . 3 . . 1 . Derelict Logs Recovered 3 | . . 1 1 . 1 Drone Launches . | . . . . . . Drone Recoveries . | . . . . . . Exploration | -11 -10 -10 -10 -8 -8 ------------- Run | Yrd Mat Min Sub Rec Scr Turns Passed 6168 | 35 1228 785 1904 954 1262 Spaces Moved 5832 | 32 1165 876 1708 928 1123 Core 1 | 1 . . . . . Treads . | . . . . . . Legs . | . . . . . . Wheels 5831 | 31 1165 876 1708 928 1123 Hover . | . . . . . . Flight . | . . . . . . Fastest Speed 50 | 50 80 80 80 90 80 Average Speed 89 | 79 80 80 94 94 94 Slowest Speed 95 | 80 80 80 95 95 95 Overloaded Moves . | . . . . . . Propulsion Burnouts . | . . . . . . Robots Hopped . | . . . . . . Cave-ins Triggered . | . . . . . . Exploration Rate (%) 74 | 3 99 99 87 98 58 Regions Visited 5 Branch Regions 4 Pre-discovered Areas 12 | . 1 1 2 7 1 Known Exits Taken 1 | . 1 . . . . Unknown Exits Taken 4 | 1 . 1 1 1 . Scrap Searched 23 | . . 2 17 . 4 Spaces Dug . | . . . . . . Terrain Destroyed 5 | . . . 1 3 1 Melee . | . . . . . . Projectile 5 | . . . 1 3 1 AOE . | . . . . . . Terrain Rammed . | . . . . . . Walls Destroyed . | . . . . . . Machines Disabled . | . . . . . . Actions | -11 -10 -10 -10 -8 -8 --------- Run | Yrd Mat Min Sub Rec Scr Total 6387 | 38 1344 942 1859 988 1216 Wait 229 | 1 97 56 14 40 21 Move 5827 | 31 1164 875 1707 927 1123 Hop . | . . . . . . Pick Up 2 | . . . . 2 . Fast Attach 13 | 6 . 1 3 . 3 Attach . | . . . . . . Detach . | . . . . . . Swap 13 | . . 1 4 3 5 Drop 1 | . . . . . 1 Fire 222 | . 58 8 96 7 53 Melee . | . . . . . . Ram . | . . . . . . Kick . | . . . . . . Crush . | . . . . . . Escape Stasis . | . . . . . . Rewire 1 | . . 1 . . . Trap . | . . . . . . Miscellaneous 79 | . 25 . 35 9 10 Route ------- -11/Scrapyard -10/Materials (discovered 5 exits: *Mat x3 / *Min x2) -10/Mines (discovered 3 exits: *Mat x2 / *Sub) -10/Subcaves (discovered 3 exits: [*Mat x2] / *Rec) -8/Recycling (discovered 2 exits: [*Fac] / [*Scr]) -8/Scraptown (discovered 1 exit: [*Fac]) History --------- Turn | Location | Event 6 | -11/Scrapyard | Upgraded with Power slot (x1) 6 | -11/Scrapyard | Upgraded with Propulsion slot (x1) 6 | -11/Scrapyard | Upgraded with Utility slot (x1) 6 | -11/Scrapyard | Upgraded with Weapon slot (x1) 17 | -11/Scrapyard | Discovered new exit (range 15) 36 | -11/Scrapyard | Entered Materials 105 | -10/Materials | Discovered new exit (range 10) 343 | -10/Materials | Build established: Hacker-Mutant 514 | -10/Materials | Discovered new exit (range 3) 570 | -10/Materials | Discovered new exit (range 15) 633 | -10/Materials | Identified exit to Mines 962 | -10/Materials | Reached level 2 967 | -10/Materials | Identified exit to Materials 1264 | -10/Materials | Entered Mines 1268 | -10/Mines | Discovered exit to Materials (range 12) 1336 | -10/Mines | Met a Derelict bent on vengeance 1405 | -10/Mines | Reached level 3 1448 | -10/Mines | Found a hidden stash of uninstalled traps 1490 | -10/Mines | Discovered exit to Materials (range 14) 1507 | -10/Mines | Learned Materials interactive machine intel 1521 | -10/Mines | Learned location of Storage (-8) 2044 | -10/Mines | Discovered new exit (range 6) 2049 | -10/Mines | Entered Subcaves 2076 | -10/Subcaves | Shifting Twisted Machinery released Piercing Trap 2078 | -10/Subcaves | Shifting Twisted Machinery released Sub. Monowheel 2144 | -10/Subcaves | Upgraded with Utility slot (x1) 2404 | -10/Subcaves | Ambushed by Subdwellers from Twisted Machinery 2786 | -10/Subcaves | Learned location of Zion (-6) 2786 | -10/Subcaves | Met a Zionite searching for "candidates" 3230 | -10/Subcaves | Discovered new exit (range 13) 3249 | -10/Subcaves | Reached level 4 3310 | -10/Subcaves | Discovered new exit (range 9) 3349 | -10/Subcaves | Discovered new exit (range 15) 3433 | -10/Subcaves | Shifting Twisted Machinery released Battle Rifle 3440 | -10/Subcaves | Shifting Twisted Machinery released Spk. Treads 3447 | -10/Subcaves | Shifting Twisted Machinery released Multitool 3450 | -10/Subcaves | Shifting Twisted Machinery released Flamer 3651 | -10/Subcaves | Visited Clippyterm 3654 | -10/Subcaves | Learned Factory trap positions 3844 | -10/Subcaves | Visited 4L-MR0's lab 3852 | -10/Subcaves | Found Prototype Protection 3852 | -10/Subcaves | Identified Gun Armor 3854 | -10/Subcaves | Attached Gun Armor, gained temporary slots: Weapon x2 3854 | -10/Subcaves | Upgraded with Utility slot (x1) 3936 | -10/Subcaves | Upgraded with Propulsion slot (x1) 3953 | -10/Subcaves | Entered Recycling 3955 | -8/Recycling | Reached level 5 4178 | -8/Recycling | Reached level 6 4180 | -8/Recycling | Discovered new exit (range 10) 4255 | -8/Recycling | Scanned before Scraplab entrance 4273 | -8/Recycling | Entered Scraplab 4280 | -8/Recycling | Discovered new exit (range 3) 4907 | -8/Recycling | Entered Scraptown 4909 | -8/Scraptown | Reached level 7 5274 | -8/Scraptown | Scanned Subdweller tech in exchange for log data 5317 | -8/Scraptown | Discovered new exit (range 13) 5465 | -8/Scraptown | Visited Spacefarers 5506 | -8/Scraptown | Visited The Evicted 5551 | -8/Scraptown | Visited SPCMW 5573 | -8/Scraptown | Visited Comm Corps 5636 | -8/Scraptown | Visited Symbiants 5647 | -8/Scraptown | Visited Assassins FH 5885 | -8/Scraptown | Attacked by Scraptown defenders 6075 | -8/Scraptown | Core integrity fell below 50% 6092 | -8/Scraptown | Found Scrap Suit 6142 | -8/Scraptown | Core integrity fell below 20% 6169 | -8/Scraptown | Destroyed by Triborg with Siege Cannon Last Messages --------------- 06155_ Penetrated by Siege Slug. 06155_ Knocked back. 06156_ Protomatter-25 decays. 06157_ Penetrated by Siege Slug. 06157_ Siege Slug penetrates Machine. 06159_ Penetrated by Siege Slug. 06159_ Wheel destroyed. 06160_ Triborg suffers critical hit (Burn). 06161_ Penetrated by Siege Slug. 06161_ Siege Slug penetrates Wall. 06163_ Penetrated by Siege Slug. 06163_ Knocked back. 06165_ Siege Slug penetrates Earth. 06167_ Dropped Med. Laser. 06167_ Penetrated by Siege Slug. 06167_ Knocked back. 06167_ Penetrated by Siege Slug. 06169_ System corrupted: Matter fused (-5). 06169_ Acquired 1 matter. 06169_ Penetrated by Siege Slug. Map ----- +----------------------------------------------------+ | ?#""" " ########?????# | | ?#"""""" " #"""X""#?????# | | ?#""" "" " #" "#?????# | | ?#"" #" "#?????# | | ?#"""" " #" "#?????# | | ?#"" " #" "#?????? | | ?#"" """"""" #" "#?????? | | ?### ####### #"" """####### | | ???# #?????# | | ?### ####### | | ?#"" """ """ #"" """##"" "" | | ?#" " " "" #" "##"" | | ?#" " " "" #"" "##"" | | ?#" " "" #"" "##""! | | ?#" "" #"" " "##"%* | | ?#" ![ #"""" "##"=! | | ?#"" "%=#""""""##""""" | | ?#""" %""=%############## | | ?#"" %!"" #######??##### | | ?#""" "" """""""#?#"""# | | ?#"""""% """ " "#?#" "# | | ?#####!# ;;; " """ "#?# # | | ?###!%TT ; ; " """ "#?# # | | ##!=%=TT;;## " """ ???# | | *! ! = "%"% " """ ???# | | ;%@%!% =%[ " """ "??# | | ;[ """=%%! " """ "??##### | | ##% "" %%" """ "#?????# | | #;%=% """"% """ "####### | | %#%!!""""" " " """ "##""""" | | ## """"" " " "##"""%" | | ?# % " """""""##" !] | | ?; """"""""" #########""""" | | ?;;######### ##??????###### | | # ##??????# ############# | | # ????????# | | ????????# | | ##????????# ###"""" """"# | | ??????????######?#""" """# | | ?????????????????#""" ""# | | ?????????????????#"""" "# | | ?????????????????#""""" "# | | ??????????????????"""""""""# | | ???????????????????######### | | | | | | | | | | | | | +----------------------------------------------------+ Best States ------------- Heat Dissipation 55 Energy Generation 21 Energy Capacity 440 Matter Stores 300 Matter Capacity 300 Sight Range 16 Robot Scan Range 14 Terrain Scan Density 10 Armor Coverage 860 Resistance: KI 20 Resistance: TH 20 Resistance: EX 20 Resistance: EM 20 Resistance: I 20 Resistance: S 20 Resistance: P 20 Evasion (%) 44 Offensive Hacking 20 Defensive Hacking 10 Item Schematics ----------------- None Robot Schematics ------------------ None Fabricated ------------ Nothing Alien Tech Used ----------------- None Achievements -------------- None Challenges ------------ None RPGLIKE | -11 -10 -10 -10 -8 -8 --------- Run | Yrd Mat Min Sub Rec Scr Levels Raised 6 | . 1 1 1 2 1 XP Earned 13464 | 4000 2225 850 1500 4240 649 XP Spent 10060 | 2000 1750 . 2700 750 2860 Upgrades 40 | 4 9 . 3 2 22 Power Slot 1 | 1 . . . . . Propulsion Slot 2 | 1 . . 1 . . Utility Slot 3 | 1 . . 2 . . Weapon Slot 1 | 1 . . . . . Core Integrity 22 | . . . . . 22 Heat Dissipation 5 | . 5 . . . . Inventory Capacity 2 | . . . . 2 . Hack Attack % 2 | . 2 . . . . Hack Defense % 2 | . 2 . . . . Protomatter Created 700 | . 163 . 203 86 248 Integrity Restored 1376 | . 449 . 542 163 222 Core 990 | . 364 . 430 84 112 Parts 386 | . 85 . 112 79 110 Protomatter Decayed 328 | . 49 . 219 29 31 Game ------ Seed LayeredDeuteriumShotgun Manual? 0 Play Time 01:12:06 Cumulative 129.9 hours Start 2024.10.02 @ 11:54:41 End 2024.10.02 @ 16:52:22 Sessions 1 Manual Loads 0 Difficulty Adventurer Special Mode Winter2019/RPGLIKE Game No. 73 Rogue 0 Adventurer 73 Explorer 0 Win Type - Total 6 Types 2/0/2/2/0/0/0/0/0 Lore% 60 Gallery% 57 Achievement% 71 Wizard Run 0 Options --------- Layout 2 ASCII 0 Keyboard 0 Movement Numpad Keybinds 0 Fullscreen 2 Font 24/Smallcaps Map View 50x44 Zoom Use 0% Tactical HUD 1 Map Filters NONE Filters NONE Steam 1 RUN: 1f84caf0-720a-49f9-af4d-6334438f9442